[Event "Open Nuevo Centro. Jornada 2"]
[Site "Chess.com"]
[Date "2020.06.26"]
[Round "7"]
[White "Valverde Alcaide, Miguel Alejandro"]
[Black "Rojo Everss, Noel"]
[Result "1-0"]
[WhiteElo "865"]
[BlackElo "682"]
[TimeControl "180+2"]
[EndTime "11:44:47 PDT"]
[Termination "Victoria de mentafurterei por jaque mate"]

1. e4 {[%clk 0:03:00.7]} 1... e5 {[%clk 0:03:00]} 2. Bc4 {[%clk 0:02:59.4]} 2...
Nf6 {[%clk 0:02:57.6]} 3. Qe2 {[%clk 0:02:54.2]} 3... Nc6 {[%clk 0:02:57.4]} 4.
Nf3 {[%clk 0:02:52.1]} 4... Bb4 {[%clk 0:02:54.7]} 5. c3 {[%clk 0:02:50.3]} 5...
Bc5 {[%clk 0:02:48.3]} 6. Ng5 {[%clk 0:02:48.3]} 6... d5 {[%clk 0:02:42.7]} 7.
exd5 {[%clk 0:02:45.4]} 7... Nxd5 {[%clk 0:02:38.1]} 8. Qf3 {[%clk 0:02:26.5]}
8... Nf6 {[%clk 0:02:34.8]} 9. Nxf7 {[%clk 0:02:23.2]} 9... Ng4 {[%clk
0:02:22.5]} 10. Nxd8 {[%clk 0:02:20.3]} 10... Bxf2+ {[%clk 0:02:20.5]} 11. Kf1
{[%clk 0:02:19.9]} 11... Nxd8 {[%clk 0:02:15.6]} 12. Qxg4 {[%clk 0:02:10.8]}
12... Bxg4 {[%clk 0:02:12]} 13. Kxf2 {[%clk 0:02:11.3]} 13... Rf8+ {[%clk
0:02:10.1]} 14. Kg3 {[%clk 0:02:05.5]} 14... Nf7 {[%clk 0:02:09.8]} 15. d3
{[%clk 0:01:54.7]} 15... O-O-O {[%clk 0:01:59.2]} 16. Kxg4 {[%clk 0:01:51.9]}
16... Nh6+ {[%clk 0:01:55]} 17. Kh3 {[%clk 0:01:49.6]} 17... Rf2 {[%clk
0:01:43.8]} 18. Re1 {[%clk 0:01:46.1]} 18... Rdf8 {[%clk 0:01:41.9]} 19. Be3
{[%clk 0:01:39.6]} 19... Rf1 {[%clk 0:01:34.6]} 20. Re2 {[%clk 0:01:31.8]} 20...
R1f2 {[%clk 0:01:25]} 21. Rxf2 {[%clk 0:01:31.2]} 21... Rxf2 {[%clk 0:01:25]}
22. Bxf2 {[%clk 0:01:32.1]} 22... Ng4 {[%clk 0:01:21]} 23. Kxg4 {[%clk
0:01:32.1]} 23... e4 {[%clk 0:01:18.2]} 24. dxe4 {[%clk 0:01:31.9]} 24... a5
{[%clk 0:01:16.9]} 25. Nd2 {[%clk 0:01:30.3]} 25... a4 {[%clk 0:01:12.1]} 26.
Re1 {[%clk 0:01:30.8]} 26... Kb8 {[%clk 0:01:07.9]} 27. e5 {[%clk 0:01:31.7]}
27... a3 {[%clk 0:01:06.5]} 28. bxa3 {[%clk 0:01:31.1]} 28... g5 {[%clk
0:01:01.1]} 29. e6 {[%clk 0:01:31]} 29... h5+ {[%clk 0:00:59.9]} 30. Kxg5 {[%clk
0:01:31]} 30... h4 {[%clk 0:00:59.5]} 31. e7 {[%clk 0:01:31.9]} 31... h3 {[%clk
0:00:59]} 32. e8=Q# {[%clk 0:01:30.8]} 1

[Event "Open Nuevo Centro. Jornada 2"]
[Site "Chess.com"]
[Date "2020.06.26"]
[Round "7"]
[White "Conejero Martínez, Víctor"]
[Black "Amorós Pérez, Manuel David"]
[Result "0-1"]
[WhiteElo "1364"]
[BlackElo "1642"]
[TimeControl "180+2"]
[EndTime "11:45:20 PDT"]
[Termination "Victoria de mpad1984 por jaque mate"]

1. d4 {[%clk 0:02:58.5]} 1... d5 {[%clk 0:03:00.3]} 2. c4 {[%clk 0:02:58.9]}
2... dxc4 {[%clk 0:03:01.2]} 3. e3 {[%clk 0:02:59.3]} 3... e6 {[%clk 0:03:02.4]}
4. Bxc4 {[%clk 0:02:59.7]} 4... c5 {[%clk 0:03:04.1]} 5. Nc3 {[%clk 0:02:59.1]}
5... Nf6 {[%clk 0:03:04.7]} 6. Nf3 {[%clk 0:02:59.9]} 6... Nc6 {[%clk
0:03:04.5]} 7. O-O {[%clk 0:03:00.7]} 7... cxd4 {[%clk 0:03:04.9]} 8. exd4
{[%clk 0:02:53.3]} 8... Bb4 {[%clk 0:03:04.6]} 9. Bg5 {[%clk 0:02:45.8]} 9...
O-O {[%clk 0:03:03.2]} 10. d5 {[%clk 0:02:40.4]} 10... exd5 {[%clk 0:02:58.2]}
11. Nxd5 {[%clk 0:02:39.9]} 11... Be7 {[%clk 0:02:59.4]} 12. Nxe7+ {[%clk
0:02:39.3]} 12... Qxe7 {[%clk 0:02:53.5]} 13. Re1 {[%clk 0:02:34.3]} 13... Qc5
{[%clk 0:02:51.6]} 14. Qc1 {[%clk 0:02:21.6]} 14... Qf5 {[%clk 0:02:30]} 15. Qc3
{[%clk 0:01:58.9]} 15... Ne4 {[%clk 0:02:23.1]} 16. Qe3 {[%clk 0:01:45.5]} 16...
Nxg5 {[%clk 0:02:08.7]} 17. Nxg5 {[%clk 0:01:43.6]} 17... h6 {[%clk 0:02:04.5]}
18. Bd3 {[%clk 0:01:42.9]} 18... Qxg5 {[%clk 0:02:02.3]} 19. Qxg5 {[%clk
0:01:33.6]} 19... hxg5 {[%clk 0:02:03.1]} 20. Re3 {[%clk 0:01:34.6]} 20... Be6
{[%clk 0:02:02.1]} 21. Rg3 {[%clk 0:01:33]} 21... f6 {[%clk 0:02:01.5]} 22. h4
{[%clk 0:01:30.9]} 22... gxh4 {[%clk 0:02:00.2]} 23. f4 {[%clk 0:01:27.5]} 23...
hxg3 {[%clk 0:02:00.2]} 24. f5 {[%clk 0:01:28.4]} 24... Bd5 {[%clk 0:01:57.3]}
25. Rf1 {[%clk 0:01:26.7]} 25... Rfe8 {[%clk 0:01:56.3]} 26. a3 {[%clk
0:01:17.7]} 26... Re3 {[%clk 0:01:56.7]} 27. Bb5 {[%clk 0:01:12.6]} 27... Rae8
{[%clk 0:01:57.5]} 28. Ba4 {[%clk 0:01:06.8]} 28... Re1 {[%clk 0:01:56.5]} 29.
Bc2 {[%clk 0:01:04]} 29... Rxf1+ {[%clk 0:01:53.7]} 30. Kxf1 {[%clk 0:01:04.5]}
30... Nd4 {[%clk 0:01:55.6]} 31. Bd3 {[%clk 0:01:02.3]} 31... Re5 {[%clk
0:01:49.9]} 32. b4 {[%clk 0:00:49.8]} 32... Nxf5 {[%clk 0:01:49.4]} 33. a4
{[%clk 0:00:45.6]} 33... Ne3+ {[%clk 0:01:48.8]} 34. Ke2 {[%clk 0:00:43.9]}
34... Nc4+ {[%clk 0:01:49.6]} 35. Kf1 {[%clk 0:00:39.5]} 35... Nb2 {[%clk
0:01:50.2]} 36. Bb5 {[%clk 0:00:36.8]} 36... a6 {[%clk 0:01:50.9]} 37. Bd7
{[%clk 0:00:36.5]} 37... Bc6 {[%clk 0:01:49.3]} 38. Bg4 {[%clk 0:00:36.3]} 38...
Bxa4 {[%clk 0:01:50]} 39. Bh3 {[%clk 0:00:31.7]} 39... Bb5+ {[%clk 0:01:51.1]}
40. Kg1 {[%clk 0:00:31.3]} 40... Re1# {[%clk 0:01:52.3]} 0

[Event "Open Nuevo Centro. Jornada 2"]
[Site "Chess.com"]
[Date "2020.06.26"]
[Round "7"]
[White "Crevillen Abad, Clemente"]
[Black "Sverdlik Roldán, Elías"]
[Result "1-0"]
[WhiteElo "1749"]
[BlackElo "765"]
[TimeControl "180+2"]
[EndTime "11:45:24 PDT"]
[Termination "Victoria de Clementovich por abandono"]

1. e4 {[%clk 0:03:01.9]} 1... e5 {[%clk 0:02:58.6]} 2. Nf3 {[%clk 0:03:01.9]}
2... Nc6 {[%clk 0:02:58]} 3. Bb5 {[%clk 0:03:02.2]} 3... d6 {[%clk 0:02:57.9]}
4. d4 {[%clk 0:03:02.2]} 4... Bd7 {[%clk 0:02:58.8]} 5. Bxc6 {[%clk 0:02:44.1]}
5... Bxc6 {[%clk 0:02:58.8]} 6. dxe5 {[%clk 0:02:44.6]} 6... dxe5 {[%clk
0:02:52.6]} 7. Qxd8+ {[%clk 0:02:39.6]} 7... Rxd8 {[%clk 0:02:47.5]} 8. Nc3
{[%clk 0:02:39.3]} 8... Bb4 {[%clk 0:02:28.1]} 9. Bd2 {[%clk 0:02:39.4]} 9...
Nf6 {[%clk 0:02:27.5]} 10. Nxe5 {[%clk 0:02:36.6]} 10... Bxc3 {[%clk 0:02:14.7]}
11. Bxc3 {[%clk 0:02:35.1]} 11... O-O {[%clk 0:02:04.4]} 12. Nxc6 {[%clk
0:02:32.2]} 12... bxc6 {[%clk 0:02:05.3]} 13. f3 {[%clk 0:02:32.5]} 13... c5
{[%clk 0:02:05.1]} 14. Ke2 {[%clk 0:02:22.7]} 14... c4 {[%clk 0:02:04.2]} 15.
Rad1 {[%clk 0:02:22.3]} 15... c5 {[%clk 0:01:40.9]} 16. Rxd8 {[%clk 0:02:15.5]}
16... Rxd8 {[%clk 0:01:41.3]} 17. Rd1 {[%clk 0:02:15.9]} 17... Rxd1 {[%clk
0:01:36.9]} 18. Kxd1 {[%clk 0:02:16.4]} 18... Nd7 {[%clk 0:01:31.3]} 19. Ke2
{[%clk 0:02:09.9]} 19... Nb6 {[%clk 0:01:29]} 20. Kd2 {[%clk 0:01:51.2]} 20...
Na4 {[%clk 0:01:22.5]} 21. Be5 {[%clk 0:01:44.6]} 21... f6 {[%clk 0:01:20.2]}
22. Bb8 {[%clk 0:01:43.3]} 22... a5 {[%clk 0:01:20.1]} 23. b3 {[%clk 0:01:31]}
23... c3+ {[%clk 0:01:14.3]} 24. Ke3 {[%clk 0:01:26]} 24... Nb6 {[%clk
0:01:07.7]} 25. Bc7 {[%clk 0:01:21.4]} 25... c4 {[%clk 0:00:23.1]} 26. Bxb6
{[%clk 0:01:20.2]} 26... cxb3 {[%clk 0:00:23.1]} 27. axb3 {[%clk 0:01:20.8]}
27... g6 {[%clk 0:00:19.2]} 28. Bxa5 {[%clk 0:01:21.1]} 28... f5 {[%clk
0:00:20.3]} 29. Bxc3 {[%clk 0:01:21.4]} 29... Kf7 {[%clk 0:00:21.7]} 30. exf5
{[%clk 0:01:21.7]} 30... gxf5 {[%clk 0:00:22.6]} 31. Kf4 {[%clk 0:01:22]} 31...
Ke6 {[%clk 0:00:23.7]} 32. Be5 {[%clk 0:01:19.8]} 1

[Event "Open Nuevo Centro. Jornada 2"]
[Site "Chess.com"]
[Date "2020.06.26"]
[Round "7"]
[White "García Oviedo, Alejandro"]
[Black "Garcia, Jhoel"]
[Result "0-1"]
[WhiteElo "1896"]
[BlackElo "2302"]
[TimeControl "180+2"]
[EndTime "11:45:29 PDT"]
[Termination "Victoria de shoels por abandono"]

1. Nf3 {[%clk 0:03:01.7]} 1... d5 {[%clk 0:02:59.6]} 2. g3 {[%clk 0:03:03.6]}
2... Nc6 {[%clk 0:02:58.3]} 3. Bg2 {[%clk 0:03:05.5]} 3... e5 {[%clk 0:02:59.6]}
4. O-O {[%clk 0:03:07.4]} 4... e4 {[%clk 0:03:00.9]} 5. Ne1 {[%clk 0:03:08.4]}
5... f5 {[%clk 0:03:02.3]} 6. c4 {[%clk 0:03:09.4]} 6... d4 {[%clk 0:03:02.4]}
7. d3 {[%clk 0:03:10]} 7... Nf6 {[%clk 0:03:01]} 8. Bg5 {[%clk 0:03:11.3]} 8...
exd3 {[%clk 0:02:11.5]} 9. exd3 {[%clk 0:03:09.4]} 9... Be7 {[%clk 0:02:12.9]}
10. Nc2 {[%clk 0:03:08.5]} 10... O-O {[%clk 0:02:12.6]} 11. Nd2 {[%clk
0:03:08.4]} 11... h6 {[%clk 0:02:11.3]} 12. Bxf6 {[%clk 0:03:07.1]} 12... Bxf6
{[%clk 0:02:12.7]} 13. b4 {[%clk 0:03:08]} 13... a5 {[%clk 0:02:10.5]} 14. a3
{[%clk 0:03:03.3]} 14... Ne5 {[%clk 0:02:09.7]} 15. Nb3 {[%clk 0:02:55.9]} 15...
axb4 {[%clk 0:02:08]} 16. axb4 {[%clk 0:02:55.3]} 16... Rxa1 {[%clk 0:02:09.2]}
17. Ncxa1 {[%clk 0:02:53.1]} 17... f4 {[%clk 0:02:10.1]} 18. Bd5+ {[%clk
0:02:46.6]} 18... Kh8 {[%clk 0:02:10.3]} 19. Nxd4 {[%clk 0:02:44.2]} 19... c6
{[%clk 0:02:04.6]} 20. Ne6 {[%clk 0:02:44.2]} 20... Bxe6 {[%clk 0:02:00.4]} 21.
Bxe6 {[%clk 0:02:45.5]} 21... Nxd3 {[%clk 0:02:00.5]} 22. Nc2 {[%clk 0:02:39.4]}
22... Bc3 {[%clk 0:01:32.7]} 23. Qb1 {[%clk 0:02:20]} 23... fxg3 {[%clk
0:01:26.9]} 24. hxg3 {[%clk 0:02:18.3]} 24... Qd6 {[%clk 0:01:03.5]} 25. Bh3
{[%clk 0:02:00.2]} 25... Nxf2 {[%clk 0:01:00.7]} 26. Rxf2 {[%clk 0:01:53.5]}
26... Qxg3+ {[%clk 0:01:00.7]} 27. Rg2 {[%clk 0:01:51.2]} 27... Qxh3 {[%clk
0:01:01.2]} 28. Qd1 {[%clk 0:01:44.6]} 28... Bf6 {[%clk 0:00:48.9]} 29. Qd6
{[%clk 0:01:31.9]} 29... Rd8 {[%clk 0:00:48.2]} 30. Qh2 {[%clk 0:01:14.8]} 30...
Rd1+ {[%clk 0:00:46.3]} 31. Kf2 {[%clk 0:01:15.8]} 31... Bh4+ {[%clk 0:00:47.7]}
0

[Event "Open Nuevo Centro. Jornada 2"]
[Site "Chess.com"]
[Date "2020.06.26"]
[Round "7"]
[White "Morata Briones, Carlos"]
[Black "Rausell Taberner, Diego"]
[Result "1-0"]
[WhiteElo "894"]
[BlackElo "565"]
[TimeControl "180+2"]
[EndTime "11:45:30 PDT"]
[Termination "Victoria de CarlosMorata por jaque mate"]

1. e4 {[%clk 0:03:01.9]} 1... e5 {[%clk 0:02:59.8]} 2. Qh5 {[%clk 0:03:01.4]}
2... Nc6 {[%clk 0:02:57.9]} 3. Bc4 {[%clk 0:03:01.7]} 3... g6 {[%clk 0:02:57.1]}
4. Qf3 {[%clk 0:03:02.1]} 4... Nf6 {[%clk 0:02:57]} 5. Nh3 {[%clk 0:03:02.2]}
5... Nd4 {[%clk 0:02:56.7]} 6. Qd3 {[%clk 0:03:02.1]} 6... Bb4 {[%clk
0:02:47.1]} 7. Ng5 {[%clk 0:03:00.2]} 7... O-O {[%clk 0:02:45.8]} 8. Bxf7+
{[%clk 0:02:56.8]} 8... Rxf7 {[%clk 0:02:44.3]} 9. Nxf7 {[%clk 0:02:58]} 9...
Kxf7 {[%clk 0:02:43.4]} 10. c3 {[%clk 0:02:56.7]} 10... Nh5 {[%clk 0:02:18.8]}
11. cxd4 {[%clk 0:02:52.9]} 11... Qg5 {[%clk 0:02:16.9]} 12. Qc4+ {[%clk
0:02:50.2]} 12... Ke8 {[%clk 0:02:11.4]} 13. Qxb4 {[%clk 0:02:50.1]} 13... Qxg2
{[%clk 0:02:02.1]} 14. Rf1 {[%clk 0:02:47.2]} 14... Qxh2 {[%clk 0:01:55.9]} 15.
b3 {[%clk 0:02:46.2]} 15... Nf4 {[%clk 0:01:48.4]} 16. Ba3 {[%clk 0:02:43.2]}
16... Nd3+ {[%clk 0:01:39.3]} 17. Kd1 {[%clk 0:02:40.6]} 17... Nxb4 {[%clk
0:01:39.3]} 18. Bxb4 {[%clk 0:02:42]} 18... Qh5+ {[%clk 0:01:39.1]} 19. f3
{[%clk 0:02:38]} 19... b6 {[%clk 0:01:37.7]} 20. Nc3 {[%clk 0:02:07.6]} 20...
Ba6 {[%clk 0:01:36.1]} 21. Re1 {[%clk 0:02:07.1]} 21... Qxf3+ {[%clk 0:01:32.9]}
22. Kc2 {[%clk 0:02:06.7]} 22... Qd3+ {[%clk 0:01:30.4]} 23. Kb2 {[%clk
0:02:03.3]} 23... Qxd2+ {[%clk 0:01:28.5]} 24. Ka3 {[%clk 0:02:03]} 24... c5
{[%clk 0:01:18.6]} 25. dxc5 {[%clk 0:02:01.7]} 25... bxc5 {[%clk 0:01:10.3]} 26.
Bxc5 {[%clk 0:02:01.1]} 26... Qxc3 {[%clk 0:01:08.9]} 27. Rec1 {[%clk
0:02:00.5]} 27... Qa5+ {[%clk 0:01:05.6]} 28. Kb2 {[%clk 0:01:54.7]} 28... Bd3
{[%clk 0:01:03]} 29. Rd1 {[%clk 0:01:52.2]} 29... Bxe4 {[%clk 0:01:00.8]} 30.
Re1 {[%clk 0:01:51.4]} 30... Bf5 {[%clk 0:00:57.7]} 31. Rxe5+ {[%clk 0:01:51.1]}
31... Kd8 {[%clk 0:00:50.4]} 32. Be7+ {[%clk 0:01:49.5]} 32... Kc8 {[%clk
0:00:48]} 33. Rxa5 {[%clk 0:01:49.3]} 33... h5 {[%clk 0:00:44]} 34. Rc5+ {[%clk
0:01:49]} 34... Kb8 {[%clk 0:00:42.3]} 35. Rb5+ {[%clk 0:01:49.5]} 35... Kc7
{[%clk 0:00:40.4]} 36. Rc1+ {[%clk 0:01:35.3]} 36... Bc2 {[%clk 0:00:35.1]} 37.
Rxc2# {[%clk 0:01:35.7]} 1

[Event "Open Nuevo Centro. Jornada 2"]
[Site "Chess.com"]
[Date "2020.06.26"]
[Round "7"]
[White "Montesinos Diaz, Luis"]
[Black "Donate Moreno, Silvia"]
[Result "1-0"]
[WhiteElo "1908"]
[BlackElo "1782"]
[TimeControl "180+2"]
[EndTime "11:45:40 PDT"]
[Termination "Victoria de Gwiso_06 por abandono"]

1. d4 {[%clk 0:03:01.9]} 1... Nf6 {[%clk 0:03:00.6]} 2. Nf3 {[%clk 0:03:01.1]}
2... g6 {[%clk 0:03:00.6]} 3. Bg5 {[%clk 0:02:57.9]} 3... Bg7 {[%clk 0:03:01.4]}
4. Nbd2 {[%clk 0:02:57.4]} 4... d5 {[%clk 0:03:01]} 5. c3 {[%clk 0:02:58.1]}
5... O-O {[%clk 0:02:55.9]} 6. h4 {[%clk 0:02:56.5]} 6... h6 {[%clk 0:02:55.4]}
7. Bf4 {[%clk 0:02:57.3]} 7... Nbd7 {[%clk 0:02:47.7]} 8. Qc2 {[%clk 0:02:57.3]}
8... Nh5 {[%clk 0:02:43.3]} 9. Bh2 {[%clk 0:02:54.3]} 9... f5 {[%clk 0:02:29.4]}
10. e3 {[%clk 0:02:49.7]} 10... Qe8 {[%clk 0:02:27.4]} 11. c4 {[%clk 0:02:48.5]}
11... c6 {[%clk 0:02:27.6]} 12. cxd5 {[%clk 0:02:48.7]} 12... cxd5 {[%clk
0:02:28]} 13. Bb5 {[%clk 0:02:49]} 13... Nhf6 {[%clk 0:02:24.8]} 14. Ne5 {[%clk
0:02:49.1]} 14... a6 {[%clk 0:02:22.2]} 15. Ba4 {[%clk 0:02:44.1]} 15... b5
{[%clk 0:02:18.8]} 16. Bb3 {[%clk 0:02:44.5]} 16... Bb7 {[%clk 0:02:19.4]} 17.
Qd3 {[%clk 0:02:41]} 17... e6 {[%clk 0:02:14.4]} 18. Bf4 {[%clk 0:02:39.2]}
18... Ne4 {[%clk 0:02:08]} 19. a4 {[%clk 0:02:29.3]} 19... Nxe5 {[%clk 0:02:06]}
20. dxe5 {[%clk 0:02:23.1]} 20... Qd7 {[%clk 0:01:43.7]} 21. O-O {[%clk
0:02:12.9]} 21... Rfd8 {[%clk 0:01:36]} 22. f3 {[%clk 0:02:12.3]} 22... Nxd2
{[%clk 0:01:35.9]} 23. Qxd2 {[%clk 0:02:13.3]} 23... Qe7 {[%clk 0:01:31.8]} 24.
Bg3 {[%clk 0:02:09.1]} 24... Rdc8 {[%clk 0:01:17.8]} 25. Rfc1 {[%clk 0:02:06.3]}
25... Qd7 {[%clk 0:01:05.5]} 26. e4 {[%clk 0:01:58.2]} 26... fxe4 {[%clk
0:01:02.1]} 27. fxe4 {[%clk 0:01:58.8]} 27... d4 {[%clk 0:01:02]} 28. axb5
{[%clk 0:01:44.7]} 28... axb5 {[%clk 0:01:02.3]} 29. Rxa8 {[%clk 0:01:44.7]}
29... Rxa8 {[%clk 0:00:57]} 30. Qb4 {[%clk 0:01:35.2]} 30... Bxe4 {[%clk
0:00:51.9]} 31. Qd6 {[%clk 0:01:25]} 31... Qxd6 {[%clk 0:00:48.9]} 32. exd6
{[%clk 0:01:23.9]} 32... Bd5 {[%clk 0:00:48.2]} 33. Bxd5 {[%clk 0:01:22.3]}
33... exd5 {[%clk 0:00:50.1]} 34. d7 {[%clk 0:01:23.8]} 34... Rd8 {[%clk
0:00:50.1]} 35. Rc8 {[%clk 0:01:23]} 35... Bf6 {[%clk 0:00:50.8]} 36. Bc7 {[%clk
0:01:23.1]} 36... d3 {[%clk 0:00:50.4]} 37. Bxd8 {[%clk 0:01:22.8]} 37... Bxd8
{[%clk 0:00:51.1]} 38. Rxd8+ {[%clk 0:01:23.7]} 38... Kf7 {[%clk 0:00:53]} 39.
Rf8+ {[%clk 0:01:18.5]} 39... Kxf8 {[%clk 0:00:53.7]} 40. d8=Q+ {[%clk
0:01:19.3]} 40... Kg7 {[%clk 0:00:55.6]} 41. Qxd5 {[%clk 0:01:20.4]} 41... d2
{[%clk 0:00:55.8]} 42. Qxd2 {[%clk 0:01:21.2]} 1

[Event "Open Nuevo Centro. Jornada 2"]
[Site "Chess.com"]
[Date "2020.06.26"]
[Round "7"]
[White "Gimenez Saiz, Jose Raul"]
[Black "Bosch Jordà, Ricard"]
[Result "0-1"]
[WhiteElo "1528"]
[BlackElo "1759"]
[TimeControl "180+2"]
[EndTime "11:45:45 PDT"]
[Termination "Victoria de UltimateLimo por abandono"]

1. d4 {[%clk 0:03:00.3]} 1... Nf6 {[%clk 0:03:00.5]} 2. e3 {[%clk 0:03:01]} 2...
e6 {[%clk 0:03:01]} 3. Bd3 {[%clk 0:03:02.1]} 3... b6 {[%clk 0:03:02.1]} 4. f4
{[%clk 0:03:02.2]} 4... Bb7 {[%clk 0:02:55]} 5. Nf3 {[%clk 0:03:02]} 5... c5
{[%clk 0:02:55.6]} 6. c3 {[%clk 0:02:58.7]} 6... cxd4 {[%clk 0:02:52.8]} 7. exd4
{[%clk 0:02:57.7]} 7... d5 {[%clk 0:02:52.9]} 8. Nbd2 {[%clk 0:02:56.8]} 8...
Nbd7 {[%clk 0:02:53]} 9. O-O {[%clk 0:02:49.6]} 9... Bd6 {[%clk 0:02:52.3]} 10.
Ne5 {[%clk 0:02:49.3]} 10... O-O {[%clk 0:02:53.1]} 11. Qf3 {[%clk 0:02:49.9]}
11... Re8 {[%clk 0:02:46.6]} 12. g4 {[%clk 0:02:50.1]} 12... Ne4 {[%clk
0:02:33.1]} 13. Nxe4 {[%clk 0:02:50.7]} 13... dxe4 {[%clk 0:02:33.8]} 14. Bxe4
{[%clk 0:02:52]} 14... Bxe4 {[%clk 0:02:34.1]} 15. Qxe4 {[%clk 0:02:52.9]} 15...
Nf6 {[%clk 0:02:19.4]} 16. Qf3 {[%clk 0:02:43.8]} 16... Nd5 {[%clk 0:02:11.9]}
17. Be3 {[%clk 0:02:35.6]} 17... b5 {[%clk 0:01:47.8]} 18. Rae1 {[%clk
0:02:26.4]} 18... Qc7 {[%clk 0:01:39.6]} 19. g5 {[%clk 0:02:12.8]} 19... Bxe5
{[%clk 0:01:34.5]} 20. fxe5 {[%clk 0:02:13.4]} 20... b4 {[%clk 0:01:31.6]} 21.
c4 {[%clk 0:02:00.9]} 21... Qxc4 {[%clk 0:01:24]} 22. Qxf7+ {[%clk 0:02:00.3]}
22... Kh8 {[%clk 0:01:24.5]} 23. g6 {[%clk 0:01:14.9]} 23... Nxe3 {[%clk
0:01:16.7]} 24. Rxe3 {[%clk 0:01:13.1]} 24... Qxd4 {[%clk 0:01:16.9]} 25. Qf2
{[%clk 0:00:52.2]} 25... Rad8 {[%clk 0:00:58.7]} 26. gxh7 {[%clk 0:00:51.2]}
26... Rf8 {[%clk 0:00:45.7]} 27. Rf3 {[%clk 0:00:42.4]} 27... Rxf3 {[%clk
0:00:39.6]} 28. Qxd4 {[%clk 0:00:43]} 28... Rxf1+ {[%clk 0:00:39.4]} 29. Kxf1
{[%clk 0:00:42.9]} 29... Rxd4 {[%clk 0:00:40.2]} 0

[Event "Open Nuevo Centro. Jornada 2"]
[Site "Chess.com"]
[Date "2020.06.26"]
[Round "7"]
[White "Zamora Soler, Raul"]
[Black "Aymerich Rosell, Pablo"]
[Result "1/2-1/2"]
[WhiteElo "1788"]
[BlackElo "1988"]
[TimeControl "180+2"]
[EndTime "11:45:50 PDT"]
[Termination "Tablas por repeticiÃ³n de movimientos"]

1. e4 {[%clk 0:03:01.9]} 1... c6 {[%clk 0:02:59.1]} 2. d4 {[%clk 0:03:02]} 2...
d5 {[%clk 0:02:59.8]} 3. exd5 {[%clk 0:03:03.1]} 3... cxd5 {[%clk 0:03:00.7]} 4.
Bd3 {[%clk 0:03:03.9]} 4... Nc6 {[%clk 0:03:00.3]} 5. c3 {[%clk 0:03:04.8]} 5...
Qc7 {[%clk 0:03:01.3]} 6. Ne2 {[%clk 0:03:03.8]} 6... Bg4 {[%clk 0:03:01.2]} 7.
f3 {[%clk 0:03:04]} 7... Bd7 {[%clk 0:03:01.8]} 8. Bf4 {[%clk 0:02:57.3]} 8...
e5 {[%clk 0:03:02.1]} 9. dxe5 {[%clk 0:02:57.1]} 9... Nxe5 {[%clk 0:03:02.9]}
10. O-O {[%clk 0:02:40.8]} 10... Bd6 {[%clk 0:03:02.2]} 11. Bxe5 {[%clk
0:02:40.6]} 11... Bxe5 {[%clk 0:03:02.8]} 12. f4 {[%clk 0:02:36]} 12... Bd6
{[%clk 0:02:59.3]} 13. Nd4 {[%clk 0:02:33.1]} 13... Ne7 {[%clk 0:02:52.4]} 14.
g3 {[%clk 0:02:28.6]} 14... O-O {[%clk 0:02:52.5]} 15. Nd2 {[%clk 0:02:25.6]}
15... Bh3 {[%clk 0:02:38.7]} 16. Re1 {[%clk 0:02:25.7]} 16... Rae8 {[%clk
0:02:34]} 17. Bxh7+ {[%clk 0:02:23.4]} 17... Kxh7 {[%clk 0:02:26.7]} 18. Qh5+
{[%clk 0:02:23.2]} 18... Kg8 {[%clk 0:02:26.3]} 19. Qxh3 {[%clk 0:02:21.5]}
19... Qb6 {[%clk 0:02:23.8]} 20. Rab1 {[%clk 0:02:09.9]} 20... Bc5 {[%clk
0:02:23.3]} 21. Nb3 {[%clk 0:02:09.9]} 21... Nc6 {[%clk 0:02:19.2]} 22. Rxe8
{[%clk 0:01:52.9]} 22... Bxd4+ {[%clk 0:02:12.9]} 23. cxd4 {[%clk 0:01:50.1]}
23... Rxe8 {[%clk 0:02:09.8]} 24. Qf1 {[%clk 0:01:38.7]} 24... Nxd4 {[%clk
0:02:04.6]} 25. Nxd4 {[%clk 0:01:31.9]} 25... Qxd4+ {[%clk 0:02:04.9]} 26. Qf2
{[%clk 0:01:33]} 26... Qd3 {[%clk 0:01:55.5]} 27. Re1 {[%clk 0:01:22.2]} 27...
Re4 {[%clk 0:01:54.1]} 28. Rxe4 {[%clk 0:01:17.3]} 28... dxe4 {[%clk 0:01:54]}
29. Qxa7 {[%clk 0:01:17.9]} 29... e3 {[%clk 0:01:37.1]} 30. Qb8+ {[%clk
0:01:14.9]} 30... Kh7 {[%clk 0:01:35.7]} 31. Qe5 {[%clk 0:01:14.4]} 31... Qd1+
{[%clk 0:00:57.5]} 32. Kg2 {[%clk 0:01:12.8]} 32... e2 {[%clk 0:00:43.6]} 33.
Qf5+ {[%clk 0:01:13.4]} 33... Kg8 {[%clk 0:00:43.3]} 34. Qc8+ {[%clk 0:01:14]}
34... Kh7 {[%clk 0:00:43.3]} 35. Qf5+ {[%clk 0:01:14.4]} 35... Kh8 {[%clk
0:00:31.2]} 36. Qc8+ {[%clk 0:01:14.2]} 36... Kh7 {[%clk 0:00:29.9]} 37. Qf5+
{[%clk 0:01:15]} 1/2-1